Cogmind - Beta 16.1 @@@ ROGUE MODE // 2026.03.19 @ 22:15:35 Player: APerTAS Result: Destroyed by G-34 Mercenary with Small Laser Performance ------------- Evolutions (1) 500 Regions Visited (2) 400 Robots Destroyed (5) 25 Value Destroyed (80) 80 Prototype IDs (0) 0 Alien Tech Used (0) 0 Bonus (200) 200 TOTAL SCORE: 1205 Bonus ------- Pacifist 200 Cogmind --------- Core Integrity 0/400 Matter 116/300 Energy 100/100 System Corruption 0% Temperature Cool (6) Movement Core (50) Location -9/Materials Parts ------- > --- POWER (1) -------- (None) > --- PROPULSION (2) --- (None) > --- UTILITY (2) ------ (None) > --- WEAPON (4) ------- (None) > --- INVENTORY (5) ---- (None) Peak State ------------ > --- POWER ------------ (None) > --- PROPULSION ------- (None) > --- UTILITY ---------- (None) > --- WEAPON ----------- Mini Grenade Launcher > --- INVENTORY -------- (None) [Rating: 2] Favorites ----------- Power None Propulsion None Utility None Weapon Mini Grenade Launcher Launcher Mini Grenade Launcher Build | -11 -10 -9 ------- Run | Yrd Mat Mat Slots Evolved 2 | . . 2 Power . | . . . Propulsion . | . . . Utility . | . . . Weapon 2 | . . 2 Parts Attached 1 | . . 1 Power . | . . . Engine . | . . . Core . | . . . Reactor . | . . . Propulsion . | . . . Treads . | . . . Leg . | . . . Wheel . | . . . Hover . | . . . Flight . | . . . Utility . | . . . Device . | . . . Storage . | . . . Processor . | . . . Hackware . | . . . Protection . | . . . Artifact . | . . . Weapon 1 | . . 1 Energy Gun . | . . . Energy Cannon . | . . . Ballistic Gun . | . . . Ballistic Cannon . | . . . Launcher 1 | . . 1 Special Weapon . | . . . Impact Weapon . | . . . Slashing Weapon . | . . . Piercing Weapon . | . . . Special Melee Weapon . | . . . Unidentified Prototypes . | . . . Parts Lost . | . . . Power . | . . . Propulsion . | . . . Utility . | . . . Weapon . | . . . Highest Loss Streak . | . . . To Critical Strikes . | . . . Average Backups . | . . . Power . | . . . Propulsion . | . . . Utility . | . . . Weapon . | . . . Tool/Special . | . . . Unused Backups . | . . . Power . | . . . Propulsion . | . . . Utility . | . . . Weapon . | . . . Tool/Special . | . . . Average Slot Usage (%) 1 | . . 1 Launcher 1 | . . 1 Peak Build Rating 2 | . . 2 Average Rating . | . . . On Entrance . | . . . Avg Prop Armor Cover (%) . | . . . Naked Turns 223 | . 37 186 Heaviest Build 1 | . . 1 Greatest Support 3 | 3 3 3 Greatest Overweight (x) . | . . . Average Overweight (x) . | . . . Largest Inventory Capacity 5 | 5 5 5 Average Capacity 5 | 5 5 5 Most Carried . | . . . Average Carried . | . . . Final Capacity 5 | 5 5 5 Final Carried . | . . . Class Distribution -------------------- 100% | Mutant Dominant Class ---------------- Mutant | -10/Materials Mutant | -9/Materials Resources | -11 -10 -9 ----------- Run | Yrd Mat Mat Matter Collected 145 | 130 . 15 Remotely . | . . . Salvage Created 55 | . . 55 Parts 6 | . . 6 Haulers Intercepted . | . . . Recyclers Shooed . | . . . Parts Field Recycled . | . . . Retrieved Matter . | . . . Parts Self-Destructed . | . . . Prevented . | . . . Parts Restored . | . . . Kills | -11 -10 -9 ------- Run | Yrd Mat Mat Combat Hostiles Destroyed 4 | . . 4 Melee 1 | . . 1 AOE 3 | . . 3 Classes Destroyed 3 | . . 3 Builder 1 | . . 1 Swarmer 3 | . . 3 Sentry 1 | . . 1 Best Kill Streak 5 | . . 5 Combat Bots Only 4 | . . 4 Max Kills in Single Turn 1 | . . 1 Gunslinging . | . . . Exploded 1 | . . 1 Melee 1 | . . 1 Uniques/NPCs Destroyed . | . . . Combat | -11 -10 -9 -------- Run | Yrd Mat Mat Hostile Shots Fired 61 | . 20 41 Missed 18 | . 5 13 Hits 43 | . 15 28 Projectile 43 | . 15 28 Damage Taken 593 | 5 182 406 Core 588 | 5 182 401 Absorbed by Shields . | . . . Core Remaining (%) 61 | 98 25 . Volleys Fired 13 | . . 13 Largest 1 | . . 1 Hottest 30 | . . 30 Shots Fired 13 | . . 13 Gun . | . . . Cannon . | . . . Launcher 13 | . . 13 Special . | . . . Kinetic . | . . . Thermal . | . . . Explosive 13 | . . 13 Electromagnetic . | . . . Robot Hit Streak 3 | . . 3 Robot Miss Streak 1 | . . 1 Penetration Max . | . . . Secondary Targets . | . . . Shots Hit Robots 4 | . . 4 Core Hits 11 | . 1 10 Critical Kills . | . . . Critical Parts Destroyed . | . . . Critical Strikes . | . . . Melee Attacks . | . . . Impact . | . . . Slashing . | . . . Piercing . | . . . Sneak Attacks . | . . . Combat Hostiles . | . . . Follow-up Attacks . | . . . Damage Inflicted 347 | 11 49 287 Guns . | . . . Cannons . | . . . Explosions 265 | . . 265 Melee . | . . . Ramming 82 | 11 49 22 Kinetic . | . . . Thermal . | . . . Explosive 265 | . . 265 Electromagnetic . | . . . Impact . | . . . Slashing . | . . . Piercing . | . . . Highest Corruption 6 | . 6 . Average Corruption 4 | . 4 . Corruption Purged . | . . . Corruption Blocked . | . . . Effects 1 | . 1 . Matter Fused 1 | . 1 . Overload Shots . | . . . Overflow Damage . | . . . Projectiles . | . . . Explosions . | . . . Melee . | . . . Knockbacks . | . . . Impact . | . . . Kinetic . | . . . Secondary . | . . . Self-Inflicted Damage 159 | 5 45 109 Shots 4 | . . 4 Rammed 7 | 3 1 3 Targets Rammed 7 | 3 1 3 Kicked . | . . . Crushed . | . . . Highest Temperature 2 | . . 2 Average Temperature 2 | . . 2 Received Heat Transfer 117 | . . 117 Siege Activations . | . . . Martial Activations . | . . . Shielding Activations . | . . . Robots Disrupted . | . . . Combat Hostiles . | . . . Robots Corrupted . | . . . Combat Hostiles . | . . . Parts Fried . | . . . Impact Corruptions . | . . . Robots Melted . | . . . Combat Hostiles . | . . . Parts Melted . | . . . Heat Transferred . | . . . Parts Sabotaged . | . . . Parts Stolen . | . . . Parts Stripped . | . . . Power Chain Reactions . | . . . Alert | -11 -10 -9 ------- Run | Yrd Mat Mat Maximum Alert Level . | . . . Low Security (%) 100 | 100 100 100 Level 1 . | . . . Level 2 . | . . . Level 3 . | . . . Level 4 . | . . . Level 5 . | . . . High Security . | . . . Max Security . | . . . Peak Influence 158 | . . 158 Initial . | . . . Average 85 | . . 105 Influence Increases 171 | . . 171 Destroy 0b10 Robot/C 80 | . . 80 Destroy 0b10 Robot/NC 5 | . . 5 Destroy Leader 20 | . . 20 Destroy Structure 66 | . . 66 Influence Decreases 100 | . . 100 Time Decay 100 | . . 100 Squads Dispatched 1 | . . 1 Investigation . | . . . Extermination . | . . . Reinforcement 1 | . . 1 Assault . | . . . Garrison . | . . . Intercept . | . . . Searches Triggered . | . . . Construction Impeded 1 | . . 1 Haulers Reinforced . | . . . Active Scanning Responses . | . . . Cargo Convoy Interrupts . | . . . Stealth | -11 -10 -9 --------- Run | Yrd Mat Mat Distress Signals . | . . . Communications Jammed . | . . . Distress Signals . | . . . Times Spotted 9 | . 3 6 Peak Tracking Total 4 | . 3 4 Tactical Retreats . | . . . Traps | -11 -10 -9 ------- Run | Yrd Mat Mat Traps Triggered . | . . . Indirectly . | . . . Trap Hack Attempts . | . . . Triggered . | . . . Disarmed . | . . . Reprogrammed . | . . . Reused . | . . . Traps Extracted . | . . . Installed . | . . . Triggered . | . . . Machines | -11 -10 -9 ---------- Run | Yrd Mat Mat Machines Disabled . | . . . Max in Single Turn . | . . . Machines Repaired . | . . . Machines Dismantled . | . . . Machines Sabotaged . | . . . Overloaded Fab Kills . | . . . Hacking | -11 -10 -9 --------- Run | Yrd Mat Mat Machines Accessed . | . . . Terminals . | . . . Fabricators . | . . . Repair Stations . | . . . Recycling Units . | . . . Scanalyzers . | . . . Garrison Access . | . . . Total Hacks . | . . . Successful . | . . . Failed . | . . . Catastrophic . | . . . Database Lockouts . | . . . Manual . | . . . Terminals . | . . . Fabricators . | . . . Repair Stations . | . . . Recycling Units . | . . . Scanalyzers . | . . . Garrison Access . | . . . Terminal Hacks . | . . . Fabricator Hacks . | . . . Repair Station Hacks . | . . . Recycling Unit Hacks . | . . . Scanalyzer . | . . . Garrison Access Hacks . | . . . Unauthorized Hacks . | . . . Terminals . | . . . Fabricators . | . . . Repair Stations . | . . . Recycling Units . | . . . Scanalyzers . | . . . Garrison Access . | . . . Data Cores Recovered . | . . . Used . | . . . Hacking Detections . | . . . Full Trace Events . | . . . Feedback Events . | . . . Feedback Blocked . | . . . Robot Schematics Acquired . | . . . Robots Built . | . . . Authchips . | . . . Time . | . . . Total Robot Build Rating . | . . . Part Schematics Acquired . | . . . Parts Built . | . . . Authchips . | . . . Time . | . . . Total Part Build Rating . | . . . Part Studies Acquired . | . . . Parts Repaired . | . . . Time . | . . . Parts Recycled . | . . . Recycled Matter . | . . . Retrieved Matter . | . . . Retrieved Components . | . . . Parts Scanalyzed . | . . . Part Schematics Acquired . | . . . Parts Damaged . | . . . Bothacking | -11 -10 -9 ------------ Run | Yrd Mat Mat Used RIF Installer . | . . . Robots Hacked . | . . . Non-combat . | . . . Combat . | . . . Robot Hacks Applied . | . . . Relay Couplers Released . | . . . Fabnet Peak Effective % . | . . . Robots Rewired . | . . . Allies Hacked . | . . . Hacks Repelled . | . . . Allies | -11 -10 -9 -------- Run | Yrd Mat Mat Total Allies . | . . . Largest Group . | . . . Highest-Rated Group . | . . . Highest-Rated Ally . | . . . Total Orders . | . . . Ally Attacks . | . . . Total Damage . | . . . Kills . | . . . Allies Corrupted . | . . . Allies Melted . | . . . Intel | -11 -10 -9 ------- Run | Yrd Mat Mat Active Infowar (turns) . | . . . Robot Analysis Total . | . . . Derelict Logs Recovered . | . . . Drone Launches . | . . . Drone Recoveries . | . . . Exploration | -11 -10 -9 ------------- Run | Yrd Mat Mat Turns Passed 263 | 13 37 213 Spaces Moved 122 | 20 59 43 Core 122 | 20 59 43 Treads . | . . . Legs . | . . . Wheels . | . . . Hover . | . . . Flight . | . . . Fastest Speed 50 | 50 50 50 Average Speed 50 | 50 50 50 Slowest Speed 50 | 50 50 50 Overloaded Moves . | . . . Propulsion Burnouts . | . . . Robots Hopped . | . . . Potential Cave-ins 2 | . . 2 Cave-ins Triggered . | . . . Exploration Rate (%) 9 | 3 14 10 Regions Visited 2 Branch Regions . Pre-discovered Areas . | . . . Known Exits Taken . | . . . Unknown Exits Taken 2 | 1 1 . Scrap Searched . | . . . Spaces Dug . | . . . Terrain Destroyed 68 | . . 68 Melee . | . . . Projectile . | . . . AOE 68 | . . 68 Terrain Rammed 6 | . 6 . Walls Destroyed . | . . . Machines Disabled . | . . . Actions | -11 -10 -9 --------- Run | Yrd Mat Mat Total 308 | 22 65 221 Wait 161 | . . 161 Move 120 | 19 58 43 Hop . | . . . Pick Up . | . . . Fast Attach 1 | . . 1 Attach . | . . . Detach . | . . . Swap . | . . . Drop . | . . . Fire 13 | . . 13 Melee . | . . . Ram 13 | 3 7 3 Kick . | . . . Crush . | . . . Escape Stasis . | . . . Rewire . | . . . Trap . | . . . Miscellaneous . | . . . Route ------- -11/Scrapyard -10/Materials -9/Materials History --------- Turn | Location | Event 3 | -11/Scrapyard | Discovered new exit (range 15) 14 | -11/Scrapyard | Entered Materials 44 | -10/Materials | Core integrity fell below 50% 50 | -10/Materials | Discovered new exit (range 3) 51 | -10/Materials | Entered another Materials area 51 | -9/Materials | Evolved 2 slots: Weapon x2 71 | -9/Materials | Core integrity fell below 50% 94 | -9/Materials | Released all parts (1) 236 | -9/Materials | Core integrity fell below 20% 264 | -9/Materials | Destroyed by G-34 Mercenary with Small Laser Last Messages --------------- 00140_ U-05 Engineer builds a Wall. 00155_ K-01 Serf collects debris. 00163_ The unstable cave ceiling collapses. 00179_ U-05 Engineer lays Concrete. 00180_ K-01 Serf collects debris. 00180_ U-05 Engineer lays Concrete. 00190_ U-05 Engineer builds a Door. 00191_ U-05 Engineer lays Concrete. 00196_ U-05 Engineer builds a Wall. 00197_ U-05 Engineer lays Concrete. 00197_ K-01 Serf collects debris. 00200_ U-05 Engineer builds a Wall. 00202_ K-01 Serf collects debris. 00205_ U-05 Engineer lays Concrete. 00206_ U-05 Engineer builds a Wall. 00210_ U-05 Engineer lays Concrete. 00213_ U-05 Engineer builds a Wall. 00217_ U-05 Engineer lays Concrete. 00247_ U-05 Engineer builds a Wall. 00252_ U-05 Engineer lays Concrete. Map ----- +----------------------------------------------------+ | ?????????????????????????????????????????????????? | | ?????????????????????????????????????????????????? | | ?????????????????????????????????????????????????? | | ?????????????????????????????????????????????????? | | ?????????????????????????????????????????????????? | | ?????????????????????????????????????????????????? | | ?????????????????????????????????????????????????? | | ?????????????????????????????????????????????????? | | ?????????????????????????????????????????????????? | | ?????????????????????????????????????????????????? | | ?????????????????????????????????????????????????? | | ?????????????????????????????????????????????????? | | ?????????????????????????????????????????????????? | | ?????????????????????????????????????????????????? | | ?????????????????????????????????????????????????? | | ?????????????????????????????????????????????????? | | ?????????????????????????????????????????????????? | | ?????????????????????????????????????????????????? | | ?????????????????????????????????????????????????? | | ????????????????????????????###########?####?????? | | ????????????????????????????# #? #?????? | | ????????????????????????????# # #?????? | | ???????????????????????????## # #?????? | | ?????????????????????????### [[ # #?????? | | ????????????????????????##g [[ # #?????? | | ????????????????????????#@# [[ # #?????? | | ??????????????????# ######### ] # #?????? | | ??????????????????# "" ] # # ###+### #??? #? | | ??????????????????# ""S ] [ ### ## +? | | ??????????????????# "" %= #? | | ??????????????????# # #? | | ??????????????????#= !! [ #? | | ??????????????????# / !! # # #####? | | ??????????????????# ! # !# # # #???? | | ??????????????????# * ##???? | | ??????????????????# ! # # #????? | | ??????????????????#####+#### ## #????? | | ???????????????????????????###### =! #????? | | ????????????????????????????????? !! #????? | | ????????????????????????????????? # ! #????? | | ????????????????????????????????## ########????? | | ?????????????????????????????????# #???????????? | | ?????????????????????????????????# #???????????? | | ?????????????????????????????????# #???????????? | | ?????????????????????????????????# #???????????? | | ?????????????????????????????????# #???????????? | | ?????????????????????????????????# #???????????? | | ?????????????????????????????????# #???????????? | | ?????????????????????????????????# #???????????? | | ??????????????????????????###+#### ####????????? | +----------------------------------------------------+ Best States ------------- Heat Dissipation 28 Energy Generation 5 Energy Capacity 100 Matter Stores 244 Matter Capacity 300 Sight Range 16 Terrain Scan Density 10 Evasion (%) 50 Item Schematics ----------------- None Robot Schematics ------------------ None Fabricated ------------ Nothing Repaired ---------- Nothing Studied --------- None Alien Tech Used ----------------- None Achievements -------------- None Challenges ------------ None Game ------ Seed SurgeScanMicrothruster Manual? 0 Play Time 00:02:18 Cumulative 26.2 hours Start 2026.03.19 @ 22:14:12 End 2026.03.19 @ 22:15:35 Sessions 1 Manual Loads 0 Difficulty Rogue Special Mode None Game No. 117 Rogue 117 Adventurer 0 Explorer 0 Win Type - Total 0 Types 0/0/0/0/0/0/0/0/0/0 Lore% 33 Gallery% 25 Achievement% 34 Wizard Run 0 Options --------- Layout 0 ASCII 0 Keyboard 0 Movement Arrows Keybinds 0 Fullscreen 2 Font 18/Terminus Map View 76x50 Zoom Use 0% Tactical HUD 1 Map Filters NONE Filters NONE Steam 1 RUN: 1ed213ab-67ca-4436-9397-897ee4ddf9fd